[Event "Late-Titled-Tuesday-Blitz-October-24-2023"]
[Site "Chess.com"]
[Date "2023.10.24"]
[Round "4"]
[White "Darko-Dimitrijevic"]
[Black "Road2GM3000"]
[Result "0-1"]
[WhiteElo "2112"]
[BlackElo "2364"]
[TimeControl "180+1"]
[EndTime "14:40:17 PDT"]
[Termination "Road2GM3000 won on time"]

1. e4 {[%clk 0:03:00.9]} 1... e5 {[%clk 0:02:39.7]} 2. Nf3 {[%clk 0:02:58.8]}
2... Nc6 {[%clk 0:01:41]} 3. Bb5 {[%clk 0:02:56.8]} 3... Nf6 {[%clk 0:01:36.8]}
4. O-O {[%clk 0:02:54.7]} 4... a6 {[%clk 0:01:36.3]} 5. Ba4 {[%clk 0:02:54.1]}
5... b5 {[%clk 0:01:33.1]} 6. Bb3 {[%clk 0:02:53.4]} 6... d6 {[%clk 0:01:26.4]}
7. Re1 {[%clk 0:02:51.5]} 7... Be7 {[%clk 0:01:25.8]} 8. h3 {[%clk 0:02:51.1]}
8... O-O {[%clk 0:01:25.5]} 9. c3 {[%clk 0:02:51.1]} 9... Nb8 {[%clk 0:01:23.6]}
10. d4 {[%clk 0:02:51.1]} 10... exd4 {[%clk 0:01:17.7]} 11. cxd4 {[%clk
0:02:50.6]} 11... c5 {[%clk 0:01:18.4]} 12. Nc3 {[%clk 0:02:43.4]} 12... Bb7
{[%clk 0:01:11.7]} 13. d5 {[%clk 0:02:42.8]} 13... Nbd7 {[%clk 0:01:10.5]} 14.
Bf4 {[%clk 0:02:41.5]} 14... Re8 {[%clk 0:01:06.6]} 15. Qd2 {[%clk 0:02:32.6]}
15... Nf8 {[%clk 0:01:05.3]} 16. Rad1 {[%clk 0:02:28.8]} 16... Ng6 {[%clk
0:01:05.1]} 17. Bh2 {[%clk 0:02:28]} 17... Nd7 {[%clk 0:01:04.8]} 18. a4 {[%clk
0:02:21]} 18... b4 {[%clk 0:01:03.3]} 19. Nb1 {[%clk 0:02:08.9]} 19... Nde5
{[%clk 0:00:57.5]} 20. Nxe5 {[%clk 0:02:08.1]} 20... Nxe5 {[%clk 0:00:57.2]} 21.
f4 {[%clk 0:02:06]} 21... Nd7 {[%clk 0:00:56.5]} 22. Qf2 {[%clk 0:01:57.8]}
22... Nb6 {[%clk 0:00:54.3]} 23. Nd2 {[%clk 0:01:57]} 23... a5 {[%clk
0:00:53.6]} 24. Nc4 {[%clk 0:01:43.2]} 24... Nxc4 {[%clk 0:00:51.4]} 25. Bxc4
{[%clk 0:01:42.7]} 25... Bf6 {[%clk 0:00:50.6]} 26. Qc2 {[%clk 0:01:33.1]} 26...
Bd4+ {[%clk 0:00:49.2]} 27. Kh1 {[%clk 0:01:31.9]} 27... Ba6 {[%clk 0:00:49.1]}
28. b3 {[%clk 0:01:27.5]} 28... Bxc4 {[%clk 0:00:49.2]} 29. Qxc4 {[%clk
0:01:27]} 29... Qh4 {[%clk 0:00:46.2]} 30. Re2 {[%clk 0:01:19]} 30... Re7 {[%clk
0:00:35.6]} 31. Rde1 {[%clk 0:01:16.4]} 31... Rae8 {[%clk 0:00:35.7]} 32. Qa6
{[%clk 0:00:34.6]} 32... h6 {[%clk 0:00:35.4]} 33. Qxd6 {[%clk 0:00:33.2]} 33...
Bf2 {[%clk 0:00:29]} 34. Rf1 {[%clk 0:00:32.3]} 34... Bd4 {[%clk 0:00:26.4]} 35.
e5 {[%clk 0:00:27.9]} 35... c4 {[%clk 0:00:26.2]} 36. bxc4 {[%clk 0:00:26.1]}
36... b3 {[%clk 0:00:27.1]} 37. Qa3 {[%clk 0:00:13.6]} 37... Qh5 {[%clk
0:00:24.7]} 38. Rfe1 {[%clk 0:00:10.8]} 38... Bc3 {[%clk 0:00:25.2]} 39. Qxb3
{[%clk 0:00:09]} 39... Bxe1 {[%clk 0:00:25.5]} 40. Rxe1 {[%clk 0:00:09.1]} 40...
Qh4 {[%clk 0:00:19.1]} 41. Qc3 {[%clk 0:00:07]} 41... Rb7 {[%clk 0:00:17.5]} 42.
d6 {[%clk 0:00:05.9]} 42... Qf2 {[%clk 0:00:18.2]} 43. Qe3 {[%clk 0:00:03.4]}
43... Qc2 {[%clk 0:00:18.1]} 44. c5 {[%clk 0:00:02.8]} 44... Rb2 {[%clk
0:00:18.1]} 45. Qf3 {[%clk 0:00:01.5]} 45... Qxc5 {[%clk 0:00:18.3]} 46. f5
{[%clk 0:00:01.1]} 46... Rbb8 {[%clk 0:00:12.2]} 47. e6 {[%clk 0:00:01.2]} 47...
fxe6 {[%clk 0:00:11.5]} 48. fxe6 {[%clk 0:00:01.5]} 48... Qc4 {[%clk 0:00:09.4]}
0-1

[Event "Late-Titled-Tuesday-Blitz-October-24-2023"]
[Site "Chess.com"]
[Date "2023.10.24"]
[Round "4"]
[White "sergiochess83"]
[Black "DvaHrasta"]
[Result "1/2-1/2"]
[WhiteElo "2865"]
[BlackElo "2493"]
[TimeControl "180+1"]
[EndTime "14:40:22 PDT"]
[Termination "Game drawn by repetition"]

1. d4 {[%clk 0:02:56.4]} 1... Nf6 {[%clk 0:02:59.7]} 2. c4 {[%clk 0:02:54.3]}
2... e6 {[%clk 0:02:59.7]} 3. g3 {[%clk 0:02:53.7]} 3... d5 {[%clk 0:02:58.3]}
4. Bg2 {[%clk 0:02:54]} 4... Bb4+ {[%clk 0:02:58.1]} 5. Nd2 {[%clk 0:02:53.8]}
5... O-O {[%clk 0:02:56.2]} 6. Nf3 {[%clk 0:02:53.6]} 6... c5 {[%clk 0:02:52.2]}
7. a3 {[%clk 0:02:42.3]} 7... Bxd2+ {[%clk 0:02:50.9]} 8. Qxd2 {[%clk
0:02:42.5]} 8... dxc4 {[%clk 0:02:49.3]} 9. dxc5 {[%clk 0:02:42.4]} 9... Na6
{[%clk 0:02:36.4]} 10. c6 {[%clk 0:02:40.7]} 10... Nc5 {[%clk 0:02:25.6]} 11.
Ne5 {[%clk 0:02:08.2]} 11... bxc6 {[%clk 0:02:12.2]} 12. Qxd8 {[%clk 0:01:06.7]}
12... Rxd8 {[%clk 0:02:09.5]} 13. Bg5 {[%clk 0:01:02.9]} 13... Nb3 {[%clk
0:01:54.9]} 14. Rd1 {[%clk 0:01:02.5]} 14... Rxd1+ {[%clk 0:01:48.8]} 15. Kxd1
{[%clk 0:01:03.4]} 15... Nd5 {[%clk 0:01:39.4]} 16. e4 {[%clk 0:01:00.3]} 16...
Nb6 {[%clk 0:01:31.5]} 17. Be3 {[%clk 0:00:59.5]} 17... Bb7 {[%clk 0:01:26.8]}
18. Kc2 {[%clk 0:00:55.4]} 18... f6 {[%clk 0:01:22.3]} 19. Nxc4 {[%clk
0:00:39.8]} 19... Nxc4 {[%clk 0:01:18]} 20. Kxb3 {[%clk 0:00:39.9]} 20... Nxe3
{[%clk 0:01:17.1]} 21. fxe3 {[%clk 0:00:39.6]} 21... Rd8 {[%clk 0:01:16.4]} 22.
Kc3 {[%clk 0:00:28.7]} 22... c5 {[%clk 0:01:13.4]} 23. Bf3 {[%clk 0:00:27.7]}
23... Kf8 {[%clk 0:01:11.8]} 24. Rd1 {[%clk 0:00:26]} 24... Rxd1 {[%clk
0:01:10.6]} 25. Bxd1 {[%clk 0:00:26.9]} 25... Ke7 {[%clk 0:01:10.8]} 26. Bc2
{[%clk 0:00:20.1]} 26... h6 {[%clk 0:01:08]} 27. e5 {[%clk 0:00:10.3]} 27...
fxe5 {[%clk 0:01:07.3]} 28. e4 {[%clk 0:00:07.3]} 28... Kd6 {[%clk 0:00:52.9]}
29. Bd3 {[%clk 0:00:07.7]} 29... a5 {[%clk 0:00:47]} 30. Kb3 {[%clk 0:00:07.7]}
30... Bc6 {[%clk 0:00:46.2]} 31. Kc3 {[%clk 0:00:08.1]} 31... Be8 {[%clk
0:00:40.8]} 32. Kc4 {[%clk 0:00:07.2]} 32... Bc6 {[%clk 0:00:36]} 33. Kc3 {[%clk
0:00:07.3]} 33... g5 {[%clk 0:00:31.9]} 34. Kc4 {[%clk 0:00:06.7]} 34... Bd7
{[%clk 0:00:28.9]} 35. Kc3 {[%clk 0:00:06.7]} 35... Bc8 {[%clk 0:00:27.7]} 36.
Kb3 {[%clk 0:00:06.6]} 36... Kc6 {[%clk 0:00:24.5]} 37. Kc3 {[%clk 0:00:05.8]}
37... Kb6 {[%clk 0:00:24.7]} 38. Bc4 {[%clk 0:00:05]} 38... Bb7 {[%clk 0:00:23]}
39. Kd3 {[%clk 0:00:05.2]} 39... Bc8 {[%clk 0:00:22.8]} 40. Kc3 {[%clk
0:00:05.2]} 40... Bd7 {[%clk 0:00:22.9]} 41. Kd3 {[%clk 0:00:05.5]} 41... Bb5
{[%clk 0:00:22.3]} 42. Kc3 {[%clk 0:00:04.6]} 42... Bc6 {[%clk 0:00:14.9]} 43.
Kd3 {[%clk 0:00:04.4]} 43... Bd7 {[%clk 0:00:14.9]} 44. Kc3 {[%clk 0:00:04.3]}
44... Kc7 {[%clk 0:00:14.3]} 45. Kd3 {[%clk 0:00:04.3]} 45... Kd6 {[%clk
0:00:14.7]} 46. Kc3 {[%clk 0:00:04.5]} 46... Be8 {[%clk 0:00:14.3]} 47. Bd3
{[%clk 0:00:04.5]} 47... Bc6 {[%clk 0:00:11.6]} 48. Kc4 {[%clk 0:00:04.7]} 48...
Bd7 {[%clk 0:00:11.6]} 49. Kc3 {[%clk 0:00:05.1]} 49... Bc8 {[%clk 0:00:10.8]}
50. Kb3 {[%clk 0:00:05.3]} 50... Kc6 {[%clk 0:00:09.6]} 51. Bc4 {[%clk
0:00:04.2]} 51... Kb6 {[%clk 0:00:09.3]} 52. Kc3 {[%clk 0:00:04.2]} 1/2-1/2

[Event "Late-Titled-Tuesday-Blitz-October-24-2023"]
[Site "Chess.com"]
[Date "2023.10.24"]
[Round "4"]
[White "hellokostya"]
[Black "jcibarra"]
[Result "0-1"]
[WhiteElo "2607"]
[BlackElo "2910"]
[TimeControl "180+1"]
[EndTime "14:40:24 PDT"]
[Termination "jcibarra won on time"]

1. d4 {[%clk 0:03:00.9]} 1... Nf6 {[%clk 0:02:59.7]} 2. c4 {[%clk 0:03:00.3]}
2... d6 {[%clk 0:03:00.2]} 3. Nc3 {[%clk 0:02:58.1]} 3... e5 {[%clk 0:03:00.7]}
4. Nf3 {[%clk 0:02:57.4]} 4... e4 {[%clk 0:03:01]} 5. Ng5 {[%clk 0:02:50.5]}
5... Qe7 {[%clk 0:03:00.9]} 6. Qb3 {[%clk 0:02:42.8]} 6... h6 {[%clk 0:02:56.5]}
7. Nh3 {[%clk 0:02:40.8]} 7... c6 {[%clk 0:02:56.1]} 8. Nf4 {[%clk 0:02:36]}
8... g5 {[%clk 0:02:55]} 9. Nh3 {[%clk 0:02:35.3]} 9... Bg7 {[%clk 0:02:55.4]}
10. Bd2 {[%clk 0:02:17.7]} 10... O-O {[%clk 0:02:52.2]} 11. O-O-O {[%clk
0:02:17.4]} 11... c5 {[%clk 0:02:48.2]} 12. dxc5 {[%clk 0:02:12.1]} 12... dxc5
{[%clk 0:02:49.1]} 13. Be3 {[%clk 0:01:58.3]} 13... Nc6 {[%clk 0:02:48.2]} 14.
Qb5 {[%clk 0:01:45.4]} 14... Nd7 {[%clk 0:02:24.9]} 15. Nd5 {[%clk 0:01:42.3]}
15... Qe5 {[%clk 0:02:24.4]} 16. f4 {[%clk 0:01:32.6]} 16... exf3 {[%clk
0:02:23]} 17. exf3 {[%clk 0:01:29.5]} 17... Nb4 {[%clk 0:02:18.1]} 18. Bd4
{[%clk 0:01:21.1]} 18... Nxa2+ {[%clk 0:02:02.6]} 19. Kb1 {[%clk 0:01:20.5]}
19... cxd4 {[%clk 0:02:02.7]} 20. Kxa2 {[%clk 0:01:18.8]} 20... a6 {[%clk
0:01:56.3]} 21. Qb3 {[%clk 0:01:16.9]} 21... Nc5 {[%clk 0:01:54.2]} 22. Qa3
{[%clk 0:01:16.4]} 22... d3 {[%clk 0:01:11]} 23. f4 {[%clk 0:01:12.5]} 23... Qd4
{[%clk 0:01:08.8]} 24. Bxd3 {[%clk 0:01:03.9]} 24... Nxd3 {[%clk 0:01:06.3]} 25.
Rxd3 {[%clk 0:01:04.8]} 25... Qxc4+ {[%clk 0:01:05.4]} 26. Qb3 {[%clk
0:01:05.2]} 26... Qxb3+ {[%clk 0:00:46.9]} 27. Kxb3 {[%clk 0:01:06.1]} 27... Be6
{[%clk 0:00:39]} 28. fxg5 {[%clk 0:01:04.6]} 28... Rfd8 {[%clk 0:00:33.3]} 29.
Rhd1 {[%clk 0:01:00]} 29... Rxd5 {[%clk 0:00:16.6]} 30. Rxd5 {[%clk 0:01:00.9]}
30... Rd8 {[%clk 0:00:16.2]} 31. Nf4 {[%clk 0:00:57.2]} 31... Bxd5+ {[%clk
0:00:16.6]} 32. Nxd5 {[%clk 0:00:50.1]} 32... Kf8 {[%clk 0:00:13.8]} 33. gxh6
{[%clk 0:00:48.9]} 33... Bxh6 {[%clk 0:00:14.7]} 34. Rd3 {[%clk 0:00:43.9]}
34... Rd6 {[%clk 0:00:14.5]} 35. Nb4 {[%clk 0:00:36.2]} 35... Rb6 {[%clk
0:00:12.4]} 36. Ka3 {[%clk 0:00:27.2]} 36... Bg5 {[%clk 0:00:10.2]} 37. Nd5
{[%clk 0:00:26.2]} 37... Rd6 {[%clk 0:00:09.5]} 38. g3 {[%clk 0:00:21.2]} 38...
Kg7 {[%clk 0:00:08.5]} 39. h4 {[%clk 0:00:20.4]} 39... Be7 {[%clk 0:00:07.8]}
40. Kb3 {[%clk 0:00:20.1]} 40... Bf8 {[%clk 0:00:07.4]} 41. Kc2 {[%clk
0:00:19.1]} 41... Rc6+ {[%clk 0:00:07.5]} 42. Kd2 {[%clk 0:00:18.4]} 42... Bd6
{[%clk 0:00:07.6]} 43. g4 {[%clk 0:00:11.5]} 43... Be5 {[%clk 0:00:07.7]} 44. b4
{[%clk 0:00:09.5]} 44... Rc4 {[%clk 0:00:07]} 45. g5 {[%clk 0:00:03.5]} 45...
Rxh4 {[%clk 0:00:06.5]} 46. Kc2 {[%clk 0:00:03.5]} 46... Rg4 {[%clk 0:00:06]}
47. Re3 {[%clk 0:00:02.7]} 47... Rxg5 {[%clk 0:00:05.9]} 48. Kd3 {[%clk
0:00:03.2]} 48... Bd6 {[%clk 0:00:05.7]} 49. Kc4 {[%clk 0:00:03.3]} 49... b5+
{[%clk 0:00:04.9]} 50. Kb3 {[%clk 0:00:03.1]} 50... Rxd5 {[%clk 0:00:05]} 0-1

[Event "Late-Titled-Tuesday-Blitz-October-24-2023"]
[Site "Chess.com"]
[Date "2023.10.24"]
[Round "4"]
[White "stasOR4ik"]
[Black "IgorBjelobrk"]
[Result "1-0"]
[WhiteElo "2395"]
[BlackElo "2583"]
[TimeControl "180+1"]
[EndTime "14:40:26 PDT"]
[Termination "stasOR4ik won by resignation"]

1. e4 {[%clk 0:02:58.4]} 1... e6 {[%clk 0:02:56.7]} 2. c4 {[%clk 0:02:54.6]}
2... d5 {[%clk 0:02:55.8]} 3. cxd5 {[%clk 0:02:55.5]} 3... exd5 {[%clk
0:02:55.3]} 4. exd5 {[%clk 0:02:56.4]} 4... Nf6 {[%clk 0:02:54.7]} 5. Bb5+
{[%clk 0:02:56.7]} 5... Nbd7 {[%clk 0:02:53.7]} 6. Nc3 {[%clk 0:02:56.1]} 6...
Be7 {[%clk 0:02:52.4]} 7. Nf3 {[%clk 0:02:55.1]} 7... O-O {[%clk 0:02:48.1]} 8.
O-O {[%clk 0:02:51]} 8... Nb6 {[%clk 0:02:48.2]} 9. d4 {[%clk 0:02:51.2]} 9...
Nbxd5 {[%clk 0:02:41.5]} 10. h3 {[%clk 0:02:50.4]} 10... Bf5 {[%clk 0:02:36.1]}
11. Re1 {[%clk 0:02:49.4]} 11... Nb4 {[%clk 0:02:34.1]} 12. Re5 {[%clk
0:02:41.4]} 12... Bc2 {[%clk 0:02:29.8]} 13. Qe2 {[%clk 0:02:28]} 13... Bd6
{[%clk 0:01:55.3]} 14. a3 {[%clk 0:02:26.7]} 14... Bxe5 {[%clk 0:01:54.4]} 15.
dxe5 {[%clk 0:02:25.8]} 15... Nfd5 {[%clk 0:01:35.5]} 16. Nxd5 {[%clk
0:02:01.5]} 16... Qxd5 {[%clk 0:01:30.6]} 17. axb4 {[%clk 0:01:59.7]} 17... Bd1
{[%clk 0:01:26.2]} 18. Bc4 {[%clk 0:01:52.9]} 18... Qd8 {[%clk 0:01:25.4]} 19.
Qe4 {[%clk 0:01:46.9]} 19... Bxf3 {[%clk 0:01:19.1]} 20. Qxf3 {[%clk 0:01:46.8]}
20... Qd4 {[%clk 0:01:19.6]} 21. Qb3 {[%clk 0:01:13.1]} 21... Qxe5 {[%clk
0:01:16.9]} 22. Be3 {[%clk 0:01:12.3]} 22... a6 {[%clk 0:01:16.6]} 23. Ra5
{[%clk 0:01:09]} 23... b5 {[%clk 0:01:04.7]} 24. Bd5 {[%clk 0:01:08.7]} 24...
Rad8 {[%clk 0:01:03.7]} 25. Bf3 {[%clk 0:01:07.6]} 25... Qf6 {[%clk 0:00:55.1]}
26. Qa2 {[%clk 0:00:57.8]} 26... Rfe8 {[%clk 0:00:38.6]} 27. Rxa6 {[%clk
0:00:53.5]} 27... Qe7 {[%clk 0:00:38]} 28. Ra7 {[%clk 0:00:43.8]} 28... Qxb4
{[%clk 0:00:34.4]} 29. Rxc7 {[%clk 0:00:41.6]} 29... Re7 {[%clk 0:00:34]} 30.
Rxe7 {[%clk 0:00:34.7]} 30... Qxe7 {[%clk 0:00:34.9]} 31. Qb3 {[%clk 0:00:27.6]}
31... b4 {[%clk 0:00:33.4]} 32. Qc4 {[%clk 0:00:25.9]} 32... h6 {[%clk
0:00:31.1]} 33. g3 {[%clk 0:00:16.9]} 33... Rb8 {[%clk 0:00:24.4]} 34. Kg2
{[%clk 0:00:15.9]} 34... b3 {[%clk 0:00:23]} 35. Bd1 {[%clk 0:00:14]} 35... Qf6
{[%clk 0:00:22.5]} 36. Bd4 {[%clk 0:00:12.3]} 36... Qe6 {[%clk 0:00:12]} 37.
Qxe6 {[%clk 0:00:07.9]} 37... fxe6 {[%clk 0:00:12.9]} 38. Bc3 {[%clk 0:00:07.8]}
38... g6 {[%clk 0:00:12.3]} 39. Kf3 {[%clk 0:00:07.7]} 39... Kf7 {[%clk
0:00:12.4]} 40. Ke3 {[%clk 0:00:07.5]} 40... h5 {[%clk 0:00:12]} 41. h4 {[%clk
0:00:06.9]} 41... Ke7 {[%clk 0:00:11.6]} 42. Be2 {[%clk 0:00:06.6]} 42... Kd6
{[%clk 0:00:11.4]} 43. Bc4 {[%clk 0:00:05.5]} 43... e5 {[%clk 0:00:11.8]} 44.
Ke4 {[%clk 0:00:05.8]} 44... Kc5 {[%clk 0:00:11.8]} 45. Bf7 {[%clk 0:00:05.2]}
45... Rb6 {[%clk 0:00:08.4]} 46. Bxe5 {[%clk 0:00:04.2]} 46... Kb5 {[%clk
0:00:07.9]} 47. Bxb3 {[%clk 0:00:03.2]} 47... Kc5 {[%clk 0:00:06.7]} 48. Bd4+
{[%clk 0:00:02.7]} 48... Kc6 {[%clk 0:00:06.5]} 49. Bxb6 {[%clk 0:00:03.6]}
49... Kxb6 {[%clk 0:00:06.9]} 50. Bf7 {[%clk 0:00:04.5]} 1-0

[Event "Late-Titled-Tuesday-Blitz-October-24-2023"]
[Site "Chess.com"]
[Date "2023.10.24"]
[Round "4"]
[White "NikolaGry"]
[Black "Mikhail_Golubev"]
[Result "1-0"]
[WhiteElo "2729"]
[BlackElo "2553"]
[TimeControl "180+1"]
[EndTime "14:40:29 PDT"]
[Termination "NikolaGry won on time"]

1. d4 {[%clk 0:03:00.9]} 1... Nf6 {[%clk 0:02:59.2]} 2. Bg5 {[%clk 0:03:00.4]}
2... Ne4 {[%clk 0:02:55.4]} 3. h4 {[%clk 0:03:00.1]} 3... h6 {[%clk 0:02:48.5]}
4. Bf4 {[%clk 0:02:58.4]} 4... g6 {[%clk 0:02:47.2]} 5. Nd2 {[%clk 0:02:56.6]}
5... Nxd2 {[%clk 0:02:45.6]} 6. Qxd2 {[%clk 0:02:56.5]} 6... Bg7 {[%clk
0:02:45.7]} 7. Nf3 {[%clk 0:02:56.4]} 7... d6 {[%clk 0:02:45.9]} 8. c3 {[%clk
0:02:56.2]} 8... Nc6 {[%clk 0:02:43.4]} 9. O-O-O {[%clk 0:02:54.1]} 9... Bg4
{[%clk 0:02:36.9]} 10. d5 {[%clk 0:02:32.1]} 10... Bxf3 {[%clk 0:02:32.2]} 11.
gxf3 {[%clk 0:02:23.3]} 11... Na5 {[%clk 0:02:20.1]} 12. Qc2 {[%clk 0:02:20.9]}
12... c5 {[%clk 0:02:04.7]} 13. Bh3 {[%clk 0:02:05.9]} 13... b5 {[%clk
0:01:57.4]} 14. Rhg1 {[%clk 0:02:03]} 14... Kf8 {[%clk 0:01:27.9]} 15. Be6
{[%clk 0:01:09.3]} 15... Qe8 {[%clk 0:01:27.4]} 16. Rxg6 {[%clk 0:01:09.1]}
16... fxg6 {[%clk 0:01:08.2]} 17. Rg1 {[%clk 0:01:07.7]} 17... Nb7 {[%clk
0:00:18.5]} 18. Rxg6 {[%clk 0:00:59.4]} 18... Nd8 {[%clk 0:00:19]} 19. Qf5+
{[%clk 0:00:54.8]} 19... Nf7 {[%clk 0:00:19.5]} 20. Qg4 {[%clk 0:00:21]} 20...
Rh7 {[%clk 0:00:19.7]} 21. Qf5 {[%clk 0:00:18.3]} 21... b4 {[%clk 0:00:16.7]}
22. Rg4 {[%clk 0:00:11.4]} 22... Kg8 {[%clk 0:00:14.4]} 23. c4 {[%clk
0:00:09.1]} 23... Qf8 {[%clk 0:00:12.5]} 24. Rg6 {[%clk 0:00:08.5]} 24... Kh8
{[%clk 0:00:07.6]} 25. Bxf7 {[%clk 0:00:06.8]} 25... Qxf7 {[%clk 0:00:06.9]} 26.
Qxf7 {[%clk 0:00:06.5]} 26... Bxb2+ {[%clk 0:00:07.5]} 27. Kxb2 {[%clk
0:00:06.8]} 27... Rxf7 {[%clk 0:00:08.2]} 28. e3 {[%clk 0:00:05.3]} 28... Kh7
{[%clk 0:00:07.5]} 29. Rxh6+ {[%clk 0:00:05.1]} 29... Kg7 {[%clk 0:00:08]} 30.
Re6 {[%clk 0:00:05.7]} 30... Kf8 {[%clk 0:00:06.8]} 31. Bh6+ {[%clk 0:00:04.7]}
31... Ke8 {[%clk 0:00:06.7]} 32. Bf4 {[%clk 0:00:05.1]} 32... Kd7 {[%clk
0:00:07]} 33. h5 {[%clk 0:00:05.6]} 33... Rh8 {[%clk 0:00:06.7]} 34. h6 {[%clk
0:00:05.7]} 34... Rf6 {[%clk 0:00:06.4]} 35. Rxf6 {[%clk 0:00:05.8]} 35... exf6
{[%clk 0:00:06.2]} 36. Kc2 {[%clk 0:00:06.3]} 36... f5 {[%clk 0:00:06]} 37. e4
{[%clk 0:00:06.1]} 37... fxe4 {[%clk 0:00:04.8]} 38. fxe4 {[%clk 0:00:06.6]}
38... Rf8 {[%clk 0:00:04.3]} 39. Be3 {[%clk 0:00:06.4]} 39... Rf3 {[%clk
0:00:04.2]} 40. Kd3 {[%clk 0:00:05.5]} 40... Rh3 {[%clk 0:00:04]} 41. Ke2 {[%clk
0:00:04.4]} 41... a5 {[%clk 0:00:03.4]} 42. Kd2 {[%clk 0:00:04.7]} 42... a4
{[%clk 0:00:03.6]} 43. Kc2 {[%clk 0:00:05.1]} 43... Rh2 {[%clk 0:00:03.6]} 44.
Kb2 {[%clk 0:00:04.7]} 44... Ke7 {[%clk 0:00:03.8]} 45. e5 {[%clk 0:00:04.7]}
45... dxe5 {[%clk 0:00:03.1]} 46. Bxc5+ {[%clk 0:00:05]} 46... Kf7 {[%clk
0:00:03.4]} 47. Be3 {[%clk 0:00:05.6]} 47... e4 {[%clk 0:00:03.6]} 48. c5 {[%clk
0:00:05.7]} 48... Ke7 {[%clk 0:00:04.1]} 49. c6 {[%clk 0:00:06]} 49... Kd6
{[%clk 0:00:02.9]} 50. Bf4+ {[%clk 0:00:05.8]} 50... Kxd5 {[%clk 0:00:03.1]} 51.
Bxh2 {[%clk 0:00:06.4]} 1-0

[Event "Late-Titled-Tuesday-Blitz-October-24-2023"]
[Site "Chess.com"]
[Date "2023.10.24"]
[Round "4"]
[White "Karttunen"]
[Black "IlanSchnaider"]
[Result "1/2-1/2"]
[WhiteElo "2592"]
[BlackElo "2769"]
[TimeControl "180+1"]
[EndTime "14:40:30 PDT"]
[Termination "Game drawn by repetition"]

1. e4 {[%clk 0:03:00.9]} 1... c5 {[%clk 0:02:58.1]} 2. Nf3 {[%clk 0:03:00.6]}
2... d6 {[%clk 0:02:58.5]} 3. d4 {[%clk 0:03:00.5]} 3... cxd4 {[%clk 0:02:59.4]}
4. Nxd4 {[%clk 0:03:01.1]} 4... Nf6 {[%clk 0:02:59.7]} 5. Nc3 {[%clk 0:03:01.7]}
5... a6 {[%clk 0:03:00.2]} 6. f3 {[%clk 0:03:01.3]} 6... e5 {[%clk 0:02:59.4]}
7. Nb3 {[%clk 0:03:01.4]} 7... Be7 {[%clk 0:03:00.1]} 8. Be3 {[%clk 0:03:01.3]}
8... Be6 {[%clk 0:03:00.6]} 9. Qd2 {[%clk 0:03:00.7]} 9... h5 {[%clk 0:03:01.2]}
10. Nd5 {[%clk 0:02:55.1]} 10... Nxd5 {[%clk 0:02:57.4]} 11. exd5 {[%clk
0:02:56]} 11... Bf5 {[%clk 0:02:58.1]} 12. c4 {[%clk 0:02:45.6]} 12... Nd7
{[%clk 0:02:57]} 13. Be2 {[%clk 0:02:38.3]} 13... h4 {[%clk 0:02:56.8]} 14. Na5
{[%clk 0:02:27.1]} 14... Qc7 {[%clk 0:02:53.4]} 15. b4 {[%clk 0:02:26.1]} 15...
Bf6 {[%clk 0:02:44]} 16. Rc1 {[%clk 0:02:21.2]} 16... Bd8 {[%clk 0:02:19]} 17.
O-O {[%clk 0:02:09.1]} 17... O-O {[%clk 0:02:14]} 18. Kh1 {[%clk 0:01:27.5]}
18... Bh7 {[%clk 0:02:10.1]} 19. f4 {[%clk 0:01:25]} 19... Qb8 {[%clk 0:01:59]}
20. Nb3 {[%clk 0:01:14.5]} 20... Bf6 {[%clk 0:01:52.8]} 21. c5 {[%clk
0:01:13.8]} 21... exf4 {[%clk 0:01:46.4]} 22. Bxf4 {[%clk 0:01:13.2]} 22... Be5
{[%clk 0:01:46.9]} 23. c6 {[%clk 0:01:04.9]} 23... bxc6 {[%clk 0:01:21.2]} 24.
dxc6 {[%clk 0:01:04.9]} 24... Nf6 {[%clk 0:01:21.6]} 25. Bxe5 {[%clk 0:00:48.7]}
25... dxe5 {[%clk 0:01:22.5]} 26. Rxf6 {[%clk 0:00:35.7]} 26... gxf6 {[%clk
0:01:21.4]} 27. Nc5 {[%clk 0:00:36.2]} 27... Qd8 {[%clk 0:00:33.3]} 28. Nd7
{[%clk 0:00:27.7]} 28... Bf5 {[%clk 0:00:27.5]} 29. Rf1 {[%clk 0:00:27.4]} 29...
Bxd7 {[%clk 0:00:19.9]} 30. cxd7 {[%clk 0:00:27.2]} 30... Kg7 {[%clk 0:00:20.3]}
31. Bg4 {[%clk 0:00:26.5]} 31... Rh8 {[%clk 0:00:18.8]} 32. Qd6 {[%clk
0:00:22.3]} 32... Rh6 {[%clk 0:00:17.8]} 33. Bf5 {[%clk 0:00:21.8]} 33... Rh5
{[%clk 0:00:17.2]} 34. h3 {[%clk 0:00:21.5]} 34... Rg5 {[%clk 0:00:17.4]} 35. a4
{[%clk 0:00:19.6]} 35... Rb8 {[%clk 0:00:16.4]} 36. Bg4 {[%clk 0:00:17.8]} 36...
Rb6 {[%clk 0:00:13.2]} 37. Qc5 {[%clk 0:00:17.4]} 37... e4 {[%clk 0:00:12.3]}
38. Qd4 {[%clk 0:00:16.2]} 38... Re5 {[%clk 0:00:11.6]} 39. Re1 {[%clk
0:00:14.2]} 39... Rc6 {[%clk 0:00:06]} 40. b5 {[%clk 0:00:10.8]} 40... axb5
{[%clk 0:00:06]} 41. axb5 {[%clk 0:00:11.6]} 41... Rxb5 {[%clk 0:00:06.5]} 42.
Qxe4 {[%clk 0:00:09.8]} 42... Re5 {[%clk 0:00:05.6]} 43. Qb1 {[%clk 0:00:09.6]}
43... Rb6 {[%clk 0:00:04.9]} 44. Qd1 {[%clk 0:00:09.2]} 44... Rbb5 {[%clk
0:00:04.1]} 45. Rf1 {[%clk 0:00:09.2]} 45... Rg5 {[%clk 0:00:02.9]} 46. Qe1
{[%clk 0:00:08.2]} 46... Rbe5 {[%clk 0:00:03.1]} 47. Qd2 {[%clk 0:00:08]} 47...
Rg6 {[%clk 0:00:02.2]} 48. Bf5 {[%clk 0:00:08]} 48... Rg5 {[%clk 0:00:02.3]} 49.
Qd3 {[%clk 0:00:08.6]} 49... Re7 {[%clk 0:00:02.1]} 50. Rf4 {[%clk 0:00:08.6]}
50... Re5 {[%clk 0:00:02.1]} 51. Rf1 {[%clk 0:00:06.6]} 51... Re7 {[%clk
0:00:02.4]} 52. Qd2 {[%clk 0:00:04.6]} 52... Re5 {[%clk 0:00:02.6]} 53. Qd3
{[%clk 0:00:04.9]} 1/2-1/2